bitfinex/quotes_SOLUSD_20241113
["timestamp","ask_amount","ask_price","bid_price","bid_amount"]
[1731513618413,22.48968156,216.2,216.1,33.1719]
[1731513618590,22.48968156,216.22,216.1,33.1719]
[1731513618793,36.65477424,216.23,216.1,33.1719]
[1731513619286,4.6233,216.3,216.1,33.1719]
[1731513619287,20.0,216.24,216.1,33.1719]
[1731513619805,36.65477424,216.21,216.1,33.1719]
[1731513620013,36.65477424,216.19,216.1,33.1719]
[1731513620215,20.0,216.18,216.1,33.1719]
[1731513620511,36.65477424,216.23,216.11,0.12549]
[1731513620693,36.65477424,216.25,216.11,0.12549]
[1731513621014,36.65477424,216.23,216.11,0.12549]
[1731513621206,20.0,216.24,216.11,0.12549]
[1731513621403,36.65477424,216.27,216.11,0.12549]
[1731513621712,41.27877424,216.27,216.11,0.12549]
[1731513621914,4.624,216.27,216.11,0.12549]
[1731513622088,41.27877424,216.27,216.11,0.12549]
[1731513622283,36.65477424,216.23,216.11,0.12549]
[1731513622505,36.65477424,216.27,216.11,0.12549]
[1731513623012,36.65477424,216.29,216.11,0.12549]
[1731513623216,36.65477424,216.37,216.17,0.12549]
[1731513623391,36.65477424,216.39,216.21,12.7005]
[1731513623597,36.65477424,216.41,216.22,0.12549]
[1731513623917,36.65477424,216.39,216.22,0.12549]
[1731513624111,36.65477424,216.41,216.22,0.12549]
[1731513624420,36.65477424,216.37,216.22,0.12549]
[1731513624922,36.65477424,216.41,216.23,0.1]
[1731513625222,17.01320141,216.47,216.23,0.1]
[1731513625223,36.65477424,216.45,216.25,0.12549]
[1731513625408,0.79777724,216.49,216.27,0.2]
[1731513625596,36.65477424,216.47,216.25,0.2]
[1731513625794,36.65477424,216.45,216.24,32.5621]
[1731513626098,36.65477424,216.41,216.24,32.5621]
[1731513626619,0.80186515,216.51,216.24,32.5621]
[1731513626620,41.27487424,216.45,216.25,0.22549]
[1731513626916,0.80186515,216.51,216.24,32.5621]
[1731513626917,37.45663939,216.51,216.31,0.22549]
[1731513627129,36.65477424,216.51,216.33,0.12549]
[1731513627517,36.65477424,216.47,216.32,13.0589]
[1731513627813,36.65477424,216.46,216.32,13.0589]
[1731513628011,36.65477424,216.46,216.33,0.12549]
[1731513628218,36.65477424,216.48,216.33,0.12549]
[1731513628520,36.65477424,216.48,216.32,13.0589]
[1731513628521,36.65477424,216.56,216.36,32.48]
[1731513628816,36.65477424,216.58,216.37,0.22549]
[1731513628996,41.27207424,216.58,216.37,0.12549]
[1731513629193,0.80165994,216.62,216.37,0.12549]
[1731513629194,4.6168,216.6,216.4,0.12549]
[1731513629420,41.27157424,216.6,216.4,0.12549]
[1731513629609,41.27127424,216.62,216.43,0.1]
[1731513629925,36.65477424,216.64,216.45,0.1]
[1731513630104,36.65477424,216.64,216.45,12.7398]
[1731513630607,36.65477424,216.64,216.46,0.12549]
[1731513630999,41.27077424,216.64,216.46,0.12549]
[1731513631225,4.6155,216.66,216.47,0.1]
[1731513631403,20.0,216.66,216.46,0.12549]
[1731513631721,36.65477424,216.65,216.47,0.1]
[1731513631911,5.41607633,216.7,216.5,0.12549]
[1731513632104,36.65477424,216.69,216.5,0.12549]
[1731513632425,231.197971,216.72,216.54,0.22549]
[1731513632596,231.197971,216.72,216.58,0.22549]
[1731513632797,231.197971,216.72,216.6,0.12549]
[1731513632996,69.097971,216.72,216.6,0.12549]
[1731513633418,69.097971,216.72,216.49,12.69449]
[1731513633607,69.097971,216.72,216.49,4.38199662]
[1731513633920,69.097971,216.72,216.39,23.32707758]
[1731513634096,69.097971,216.72,216.47,0.9229512]
[1731513634297,69.097971,216.72,216.48,4.53145555]
[1731513635332,69.097971,216.72,216.48,5.45429461]
[1731513635501,69.097971,216.72,216.49,24.98162373]
[1731513635703,69.097971,216.72,216.5,4.53145555]
[1731513635901,0.1,216.66,216.5,4.53145555]
[1731513636122,0.1,216.66,216.46,4.60010911]
[1731513636123,36.75477424,216.66,216.46,4.60010911]
[1731513636415,36.65477424,216.66,216.47,45.5058]
[1731513636618,105.95274524,216.72,216.47,45.5058]
[1731513636797,69.197971,216.72,216.48,0.12549]
[1731513637004,69.197971,216.72,216.46,4.60010911]
[1731513637005,69.097971,216.72,216.5,0.12549]
[1731513637223,69.097971,216.72,216.5,4.65694555]
[1731513637405,69.097971,216.72,216.5,24.65694555]
[1731513637725,69.097971,216.72,216.5,0.12549]
[1731513637896,69.097971,216.72,216.5,20.12549]
[1731513638099,69.097971,216.72,216.52,0.12549]
[1731513639420,2.431371,216.72,216.56,12.39809]
[1731513640338,16.253623,216.81,216.56,12.39809]
[1731513640339,16.253623,216.81,216.79,0.12549]
[1731513640700,16.253623,216.81,216.73,12.2726]
[1731513640904,16.253623,216.81,216.74,0.12549]
[1731513642302,16.253623,216.81,216.65,12.8928]
[1731513643117,15.253623,216.81,216.65,12.8928]
[1731513643303,0.1,216.78,216.65,12.8928]
[1731513643530,0.1,216.8,216.65,12.8928]
[1731513643824,15.253623,216.81,216.65,12.8928]
[1731513644010,15.253623,216.81,216.66,0.12549]
[1731513645704,15.253623,216.81,216.65,12.8928]
[1731513646108,15.253623,216.81,216.66,0.12549]
[1731513647230,36.85477424,216.91,216.87,146.846377]
[1731513647524,36.85477424,216.91,216.66,0.12549]
[1731513647525,0.2,216.91,216.66,0.12549]
[1731513647732,36.85477424,216.91,216.68,0.12549]
[1731513648116,0.1,216.9,216.68,0.12549]
[1731513648310,0.1,216.87,216.69,0.92227181]
[1731513648518,0.1,216.88,216.65,12.8928]
[1731513649013,0.1,216.88,216.66,0.12549]
[1731513649530,0.9495152,216.96,216.66,0.12549]
[1731513649531,0.1,216.94,216.68,0.12549]
[1731513649832,0.1,216.93,216.69,44.43415331]
[1731513650035,0.2,216.91,216.69,44.43415331]
[1731513650204,0.1,216.95,216.7,0.12549]
[1731513650407,0.1,216.93,216.71,0.9220794]
[1731513650721,0.1,216.91,216.71,19.3571694]
[1731513651030,0.2,216.92,216.72,0.12549]
[1731513651206,0.2,216.92,216.74,0.12549]
[1731513651406,0.1,216.92,216.74,0.12549]
[1731513651720,0.2,216.92,216.74,0.12549]
[1731513651922,0.1,216.92,216.74,0.12549]
[1731513652121,0.1,216.95,216.76,0.12549]
[1731513652308,1.0495152,216.96,216.76,0.12549]
[1731513652509,0.9495152,216.96,216.78,0.12549]
[1731513652715,0.9495152,216.96,216.8,0.12549]
[1731513653235,0.1,216.95,216.8,0.12549]
[1731513653809,0.2,216.95,216.8,0.12549]
[1731513654010,0.1,216.95,216.8,4.73549]
[1731513654231,0.9495152,216.96,216.8,4.73549]
[1731513654417,1.0495152,216.96,216.8,4.73549]
[1731513654619,0.1,216.93,216.8,4.61]
[1731513655142,0.1,216.94,216.81,0.12549]
[1731513655511,0.1,216.95,216.8,4.61]
[1731513655821,0.1,216.94,216.81,0.12549]
[1731513656219,0.1,216.95,216.81,0.12549]
[1731513656424,0.2,216.95,216.81,0.12549]
[1731513656731,0.2,216.95,216.8,4.61]
[1731513656732,0.9495152,216.96,216.82,30.0154]
[1731513657026,0.9495152,216.96,216.84,0.12549]
[1731513657935,15.5000152,217.0,216.85,12.4405]
[1731513658235,0.2,217.1,217.05,146.5999848]
[1731513658412,0.1,217.05,216.92,0.12549]
[1731513658806,0.1,217.03,216.92,0.12549]
[1731513659033,0.1,217.05,216.86,0.12549]
[1731513659329,0.2,217.05,216.86,4.73549]
[1731513659633,0.2,217.03,216.86,4.73549]
[1731513659933,0.1,217.0,216.85,12.4405]
[1731513660241,0.2,216.97,216.85,12.4405]
[1731513660425,0.1,216.97,216.82,9.19809384]
[1731513660815,0.2,216.99,216.82,9.19809384]
[1731513663836,0.1,216.85,216.72,0.12549]
[1731513664030,0.2,216.85,216.71,36.0353407]
[1731513664625,0.2,216.83,216.71,13.097]
[1731513664837,32.9363,216.88,216.82,36.42239951]
[1731513665034,32.9363,216.88,216.71,13.097]
[1731513665035,0.2,216.85,216.78,36.42239951]
[1731513665337,0.2,216.82,216.76,36.42239951]
[1731513665515,0.1,216.78,216.74,36.42239951]
[1731513665714,0.1,216.81,216.68,18.443703]
[1731513665932,0.2,216.85,216.68,19.36621427]
[1731513666130,0.2,216.85,216.83,36.42239951]
[1731513666442,0.2,216.85,216.7,36.42239951]
[1731513666443,0.1,216.82,216.81,36.42239951]
[1731513666733,0.2,216.84,216.81,36.42239951]
[1731513666941,0.1,216.84,216.83,36.42239951]
[1731513667134,0.1,216.94,216.83,36.42239951]
[1731513667316,0.1,216.94,216.81,36.42239951]
[1731513667317,0.2,216.91,216.9,36.42239951]
[1731513667518,0.1,216.84,216.68,31.430803]
[1731513667716,0.1,216.86,216.82,36.42239951]
[1731513668021,0.1,216.86,216.84,36.42239951]
[1731513668226,0.1,216.91,216.84,36.42239951]
[1731513668413,0.1,216.91,216.71,0.9223016]
[1731513668414,0.1,216.89,216.82,0.12549]
[1731513668619,0.1,216.89,216.85,36.42239951]
[1731513668838,0.2,216.86,216.83,36.42239951]
[1731513669020,0.2,216.84,216.8,36.42239951]
[1731513669434,0.1,216.81,216.78,36.42239951]
[1731513669639,0.2,216.79,216.78,36.42239951]
[1731513670013,0.1,216.81,216.78,36.42239951]
[1731513670222,0.1,216.81,216.8,36.42239951]
[1731513670432,0.1,216.85,216.72,0.12549]
[1731513670619,0.1,216.84,216.81,36.42239951]
[1731513670831,32.5428,216.86,216.79,36.42239951]
[1731513670832,0.2,216.8,216.79,36.42239951]
[1731513671036,32.5428,216.86,216.79,36.42239951]
[1731513671037,0.1,216.82,216.79,36.42239951]
[1731513671240,0.2,216.82,216.81,36.42239951]
[1731513671443,37.1541,216.86,216.73,4.5202611]
[1731513671444,0.2,216.8,216.79,36.42239951]
[1731513671623,0.2,216.8,216.77,36.42239951]
[1731513671823,0.2,216.78,216.75,36.42239951]
[1731513672219,0.2,216.78,216.7,40.9279995]
[1731513672220,0.1,216.84,216.77,36.42239951]
[1731513672441,0.2,216.82,216.81,36.42239951]
[1731513672823,0.1,216.84,216.8,36.42239951]
[1731513673433,0.1,216.83,216.7,0.12549]
[1731513673627,0.1,216.8,216.76,4.42479055]
[1731513673934,0.1,216.8,216.71,3.42479055]
[1731513673935,0.1,216.78,216.71,3.42479055]
[1731513674139,0.2,216.78,216.71,3.42479055]
[1731513674330,0.1,216.78,216.71,3.42479055]
[1731513674530,0.1,216.84,216.72,0.12549]
[1731513674833,0.2,216.78,216.73,4.35256832]
[1731513675344,0.1,216.76,216.73,4.35256832]
[1731513676251,0.1,216.78,216.73,4.35256832]
[1731513676437,0.1,216.79,216.73,4.35256832]
[1731513676638,0.1,216.79,216.64,0.92267534]
[1731513676639,0.1,216.79,216.74,23.776884]
[1731513676943,0.2,216.81,216.74,23.776884]
[1731513677144,0.1,216.79,216.74,23.776884]
[1731513677362,0.1,216.78,216.74,23.776884]
[1731513677527,0.1,216.79,216.73,4.35256832]
[1731513677528,0.1,216.76,216.73,4.35256832]
[1731513677733,0.1,216.78,216.74,4.34889221]
[1731513677943,0.1,216.88,216.84,162.1]
[1731513678161,36.52867382,216.93,216.77,23.902374]
[1731513678445,0.1,216.89,216.77,29.37384107]
[1731513678653,0.1,216.84,216.79,23.776884]
[1731513678847,0.1,216.84,216.8,4.79666999]
[1731513679157,0.1,216.88,216.81,23.776884]
[1731513679336,0.1,216.84,216.82,4.97996999]
[1731513679534,0.1,216.84,216.77,23.776884]
[1731513679808,0.1,216.85,216.77,23.776884]
[1731513679809,0.1,216.82,216.77,23.776884]
[1731513679959,0.1,216.83,216.77,23.776884]
[1731513680250,0.1,216.83,216.77,28.07341236]
[1731513680423,0.2,216.83,216.77,28.07341236]
[1731513680830,4.6115,216.85,216.77,4.29652836]
[1731513680831,0.1,216.8,216.77,4.29652836]
[1731513681051,0.1,216.78,216.77,4.29652836]
[1731513681257,0.1,216.8,216.69,27.65998968]
[1731513681742,0.1,216.83,216.69,27.65998968]
[1731513681950,0.1,216.79,216.69,27.65998968]
[1731513682154,0.1,216.8,216.66,17.45088552]
[1731513682155,0.1,216.75,216.66,13.0011]
[1731513682446,0.1,216.75,216.67,4.01375957]
[1731513682655,0.1,216.77,216.67,3.88826957]
[1731513682958,0.09810179,216.69,216.68,1.04818584]
[1731513683253,22.4212909,216.87,216.8,161.37706003]
[1731513683457,0.1,216.85,216.7,0.12549]
[1731513683634,0.1,216.87,216.72,0.12549]
[1731513683829,0.1,216.87,216.74,23.902374]
[1731513684030,0.1,216.85,216.74,23.902374]
[1731513684337,33.2958,216.86,216.76,23.902374]
[1731513684538,0.2,216.88,216.76,28.28536579]
[1731513684751,0.2,216.88,216.76,33.37406952]
[1731513684952,0.1,216.85,216.76,33.37406952]
[1731513685254,0.2,216.81,216.67,17.66190373]
[1731513685434,0.2,216.79,216.67,12.5732]
[1731513685730,0.1,216.77,216.68,4.13945123]
[1731513685935,0.1,216.8,216.68,4.13945123]
[1731513686144,0.1,216.8,216.69,5.21419373]
[1731513686337,0.1,216.79,216.7,4.13945123]
[1731513686530,0.1,216.77,216.7,4.13945123]
[1731513686934,0.1,216.77,216.71,0.12549]
[1731513687155,0.1,216.77,216.71,4.26494123]
[1731513687336,0.1,216.75,216.71,4.13945123]
[1731513687732,0.1,216.75,216.65,0.12549]
[1731513687929,0.1,216.75,216.67,4.73549]
[1731513688132,0.1,216.75,216.69,0.12549]
[1731513688367,32.6283,216.79,216.69,0.12549]
[1731513688556,32.6283,216.79,216.68,3.93275123]
[1731513688557,0.1,216.77,216.71,23.776884]
[1731513688857,0.1,216.77,216.74,0.12549]
[1731513689042,0.1,216.77,216.73,23.776884]
[1731513689238,0.1,216.77,216.74,0.12549]
[1731513689446,32.6283,216.79,216.74,0.12549]
[1731513689762,0.1,216.77,216.74,0.12549]
[1731513690136,0.1,216.8,216.74,0.12549]
[1731513690344,0.1,216.78,216.74,0.12549]
[1731513691035,0.2,216.78,216.74,0.12549]
[1731513691234,0.1,216.83,216.74,0.12549]
[1731513691440,0.1,216.85,216.74,0.12549]
[1731513692153,0.1,216.83,216.78,23.902374]
[1731513692330,0.1,216.81,216.78,23.902374]
[1731513693346,0.1,216.79,216.78,0.12549]
[1731513693660,0.1,216.78,216.77,6.95]
[1731513695340,4.6121,216.82,216.77,6.95]
[1731513695341,0.1,216.82,216.78,23.776884]
[1731513695540,0.2,216.82,216.77,6.95]
[1731513695740,0.1,216.78,216.77,30.852374]
[1731513696047,0.1,216.78,216.77,6.95]
[1731513696242,0.1,216.79,216.77,6.95]
[1731513696461,0.1,216.78,216.77,6.95]
[1731513696758,0.1,216.65,216.54,12.6832]
[1731513696958,0.1,216.78,216.58,4.16556679]
[1731513697153,0.1,216.77,216.58,5.08826787]
[1731513697346,20.0,216.81,216.54,12.6832]
[1731513697347,0.1,216.68,216.54,17.21117614]
[1731513697548,0.1,216.72,216.54,17.21117614]
[1731513697747,0.1,216.69,216.55,5.97972182]
[1731513697951,0.2,216.67,216.55,5.05678901]
[1731513698447,0.1,216.63,216.55,5.05678901]
[1731513698644,0.1,216.63,216.54,17.21117614]
[1731513698852,0.1,216.63,216.55,0.12549]
[1731513699145,0.2,216.63,216.5,5.05678901]
[1731513699347,4.6143,216.72,216.46,4.38531326]
[1731513699348,0.1,216.54,216.46,4.38531326]
[1731513699547,0.1,216.54,216.44,13.2619]
[1731513699865,0.1,216.52,216.41,5.05678901]
[1731513700068,0.2,216.52,216.38,5.05678901]
[1731513700268,0.1,216.47,216.42,4.94967656]
[1731513700451,0.1,216.49,216.42,0.4495152]
[1731513700655,0.1,216.52,216.42,0.4495152]
[1731513700867,0.1,216.49,216.42,0.4495152]
[1731513701171,0.2,216.54,216.43,0.92378499]
[1731513701472,0.2,216.54,216.42,0.4495152]
[1731513702063,0.2,216.51,216.42,0.4495152]
[1731513702467,0.1,216.49,216.43,0.12549]
[1731513702973,0.0950978,216.44,216.43,0.12549]
[1731513703264,22.4212909,216.55,216.51,161.14956758]
[1731513703465,22.4212909,216.55,216.43,0.12549]
[1731513703466,22.4212909,216.57,216.43,0.12549]
[1731513703645,22.4212909,216.59,216.43,0.12549]
[1731513704653,27.0382909,216.59,216.43,23.902374]
[1731513704850,22.4212909,216.59,216.43,23.902374]
[1731513705069,22.4212909,216.57,216.42,4.87606567]
[1731513705268,27.0387909,216.57,216.42,4.87606567]
[1731513705466,13.05128706,216.53,216.43,0.12549]
[1731513705669,13.05128706,216.53,216.42,4.87606567]
[1731513705670,0.08708706,216.53,216.42,4.87606567]
[1731513705975,0.08708706,216.53,216.44,0.12549]
[1731513706951,0.08708706,216.53,216.45,23.902374]
[1731513707358,0.08708706,216.53,216.45,1.04900937]
[1731513707669,31.281,216.61,216.58,23.902374]
[1731513709563,22.4212909,216.78,216.58,23.902374]
[1731513709873,36.6902,216.79,216.58,28.85949635]
[1731513710064,22.4212909,216.77,216.58,23.902374]
[1731513710377,0.1,216.78,216.58,23.902374]
[1731513710378,22.4212909,216.73,216.58,23.902374]
[1731513710554,22.4212909,216.71,216.58,23.902374]
[1731513710758,32.0773,216.69,216.58,23.902374]
[1731513711656,20.0,216.68,216.58,23.902374]
[1731513712053,20.0,216.68,216.5,9.42379545]
[1731513712265,20.0,216.68,216.51,0.12549]
[1731513712981,20.0,216.68,216.51,5.08261235]
[1731513713272,20.0,216.68,216.53,0.12549]
[1731513713850,32.0773,216.69,216.54,23.902374]
[1731513714170,36.6922,216.69,216.54,28.85949635]
[1731513714470,32.0773,216.69,216.54,28.85949635]
[1731513715048,32.0926,216.76,216.54,34.54042231]
[1731513715250,32.0926,216.76,216.58,23.902374]
[1731513715474,32.0926,216.83,216.6,23.902374]
[1731513715678,4.6121,216.82,216.62,23.902374]
[1731513715879,27.0333909,216.82,216.62,28.85949635]
[1731513716055,22.4212909,216.8,216.62,28.85949635]
[1731513716661,20.0,216.79,216.62,28.85949635]
[1731513716857,20.0,216.81,216.64,23.902374]
[1731513717062,22.4212909,216.78,216.64,23.902374]
[1731513717295,20.0,216.77,216.64,23.902374]
[1731513718160,22.4212909,216.76,216.64,23.902374]
[1731513718480,22.4212909,216.72,216.57,17.75422235]
[1731513718684,22.4212909,216.68,216.52,16.76513287]
[1731513718853,22.4212909,216.66,216.5,4.95712235]
[1731513719057,22.4212909,216.63,216.46,12.2022]
[1731513719256,22.4212909,216.6,216.46,12.2022]
[1731513719563,22.4212909,216.6,216.47,0.12549]
[1731513719771,22.4212909,216.58,216.43,4.61]
[1731513720369,20.0,216.59,216.45,0.12549]
[1731513720861,24.617,216.59,216.45,0.12549]
[1731513721281,24.617,216.59,216.45,4.61]
[1731513721781,22.4212909,216.58,216.45,4.61]
[1731513721984,22.4212909,216.56,216.42,0.4495152]
[1731513722363,22.4212909,216.54,216.42,0.4495152]
[1731513722577,22.4212909,216.54,216.43,0.12549]
[1731513722779,36.4153,216.58,216.42,0.4495152]
[1731513722780,20.0,216.51,216.42,0.4495152]
[1731513722987,0.10059293,216.43,216.42,0.5750052]
[1731513723186,22.4212909,216.56,216.48,160.64827439]
[1731513723490,0.09639283,216.51,216.43,0.12549]
[1731513723662,0.09639283,216.51,216.43,1.04915682]
[1731513723861,0.09639283,216.51,216.43,0.12549]
[1731513724088,0.09639283,216.51,216.43,23.902374]
[1731513724689,0.09639283,216.51,216.43,0.12549]
[1731513724861,0.09639283,216.51,216.39,0.12549]
[1731513725184,0.09639283,216.51,216.4,5.88096727]
[1731513725387,32.8997,216.65,216.42,0.1]
[1731513725683,32.8997,216.71,216.48,0.1]
[1731513725889,37.5143,216.71,216.49,4.95712235]
[1731513726062,59.9355909,216.71,216.49,4.95712235]
[1731513726667,22.4212909,216.69,216.49,4.95712235]
[1731513726882,22.4212909,216.65,216.49,4.95712235]
[1731513727081,20.0,216.66,216.44,0.1]
[1731513727278,20.0,216.66,216.44,5.18261235]
[1731513727589,20.0,216.7,216.46,0.12549]
[1731513727885,20.0,216.7,216.48,0.12549]
[1731513728079,24.6147,216.7,216.5,0.12549]
[1731513728281,20.0,216.7,216.52,0.12549]
[1731513728494,32.8997,216.71,216.52,23.902374]
[1731513728792,0.1,216.79,216.5,0.1]
[1731513728793,30.2498,216.79,216.75,161.2]
[1731513729083,34.8626,216.79,216.58,23.902374]
[1731513729387,34.8626,216.79,216.58,29.04727412]
[1731513729682,4.6095,216.94,216.65,0.22549]
[1731513729989,0.5495152,216.96,216.59,11.48506252]
[1731513729990,36.55556988,216.9,216.67,0.12549]
[1731513730162,36.45556988,216.88,216.67,0.12549]
[1731513730364,36.90508508,216.96,216.71,0.1]
[1731513730575,5.0588152,216.96,216.73,23.902374]
[1731513730868,36.45556988,216.92,216.73,23.902374]
[1731513731371,36.45556988,216.89,216.73,23.902374]
[1731513732494,36.45556988,216.87,216.73,23.902374]
[1731513732687,36.45556988,216.87,216.67,4.39335381]
[1731513732864,20.0,216.86,216.67,0.12549]
[1731513733067,20.0,216.84,216.67,0.12549]
[1731513733462,36.45556988,216.89,216.67,0.12549]
[1731513733672,41.06576988,216.91,216.67,0.12549]
[1731513733964,41.06576988,216.91,216.67,23.902374]
[1731513734285,36.45556988,216.89,216.67,23.902374]
[1731513734972,20.0,216.88,216.67,23.902374]
[1731513735287,36.45556988,216.95,216.73,0.1]
[1731513735483,0.4495152,216.96,216.76,23.902374]
[1731513736309,0.4495152,216.96,216.77,0.1]
[1731513736606,36.45556988,216.94,216.76,23.776884]
[1731513736805,36.45556988,216.92,216.76,23.776884]
[1731513736982,36.45556988,216.94,216.76,23.776884]
[1731513737188,0.4495152,216.96,216.76,23.776884]
[1731513737400,0.4495152,216.96,216.77,0.12549]
[1731513737606,41.51428508,216.96,216.77,0.12549]
[1731513737806,41.51428508,216.96,216.76,23.776884]
[1731513738010,0.4495152,216.96,216.78,0.1]
[1731513738201,0.4495152,216.96,216.83,0.12549]
[1731513738396,0.4495152,216.96,216.85,23.876884]
[1731513738594,36.45556988,217.07,217.03,160.7504848]
[1731513738909,36.45556988,217.07,216.83,5.68092596]
[1731513738910,36.45556988,217.11,216.88,0.1]
[1731513739116,36.45556988,217.09,216.88,0.1]
[1731513739491,69.22566988,217.14,216.87,23.776884]
[1731513739492,36.45556988,217.07,216.87,23.776884]
[1731513739835,36.45556988,217.05,216.87,23.776884]
[1731513740012,36.45556988,217.05,216.88,0.12549]
[1731513740207,36.45556988,217.07,216.88,0.12549]
[1731513740592,36.45556988,217.05,216.88,0.12549]
[1731513740793,36.45556988,217.07,216.88,0.12549]
[1731513741004,36.45556988,217.09,216.88,0.12549]
[1731513741207,36.45556988,217.07,216.88,0.12549]
[1731513741996,36.45556988,217.07,216.87,23.776884]
[1731513741997,36.45556988,217.09,216.9,0.12549]
[1731513742411,36.45556988,217.09,216.87,23.876884]
[1731513742412,36.45556988,217.07,216.87,23.776884]
[1731513742590,36.45556988,217.01,216.83,4.47918881]
[1731513742789,4.6056,217.13,216.8,30.9141]
[1731513742790,36.45556988,217.04,216.8,30.8141]
[1731513742994,0.08689512,216.88,216.82,17.13556528]
[1731513743190,0.06535197,216.89,216.82,17.13556528]
[1731513743504,0.06535197,216.89,216.82,17.03556528]
[1731513743700,0.06535197,216.89,216.83,0.92190965]
[1731513744796,0.06535197,216.89,216.84,0.12549]
[1731513745093,0.06535197,216.89,216.86,0.12549]
[1731513745609,0.06535197,216.89,216.86,23.902374]
[1731513745813,0.0311691,216.9,216.86,23.902374]
[1731513746112,36.45556988,217.08,217.01,160.53188176]
[1731513746316,36.45556988,217.08,216.87,0.12549]
[1731513746501,36.45556988,217.06,216.87,0.12549]
[1731513746820,36.45556988,217.08,216.87,0.12549]
[1731513747191,36.45556988,217.1,216.87,0.12549]
[1731513747393,36.45556988,217.08,216.89,0.12549]
[1731513748010,36.45556988,217.08,216.84,0.2]
[1731513748212,36.45556988,217.08,216.85,4.62004679]
[1731513748411,36.45556988,217.08,216.86,0.22549]
[1731513749102,36.45556988,217.06,216.85,4.62004679]
[1731513749298,36.45556988,217.06,216.82,17.03556528]
[1731513749299,36.45556988,217.01,216.82,17.03556528]
[1731513749607,36.45556988,217.05,216.83,0.1]
[1731513749803,36.45556988,217.07,216.83,0.22549]
[1731513750204,20.0,217.06,216.83,4.84553679]
[1731513750403,20.0,217.06,216.85,0.12549]
[1731513750608,36.45556988,217.07,216.85,0.12549]
[1731513750798,36.45556988,217.05,216.85,0.22549]
[1731513751119,56.45556988,217.09,216.87,0.12549]
[1731513751416,56.45556988,217.09,216.91,23.902374]
[1731513751417,36.45556988,217.09,216.91,23.902374]
[1731513751915,36.45556988,217.11,216.91,23.902374]
[1731513752215,36.36388442,217.06,216.97,36.36388442]
[1731513752428,69.23398442,217.14,216.93,36.36388442]
[1731513752429,36.36388442,217.04,216.93,36.36388442]
[1731513752714,36.36388442,217.04,216.95,36.36388442]
[1731513752921,22.39174044,217.01,216.82,9.05371207]
[1731513753096,22.39174044,216.99,216.9,22.39174044]
[1731513753298,22.39174044,216.96,216.75,30.928292]
[1731513753720,22.39174044,216.96,216.86,22.39174044]
[1731513754215,22.39174044,216.98,216.89,0.12549]
[1731513754432,31.4598,217.0,216.92,22.39174044]
[1731513754601,31.4598,217.0,216.91,0.12549]
[1731513754800,31.4598,217.0,216.93,22.39174044]
[1731513755429,58.45984044,217.0,216.91,22.39174044]
[1731513755594,58.45984044,217.0,216.81,26.84560061]
[1731513755595,22.39174044,216.96,216.87,22.39174044]
[1731513755924,31.4598,217.0,216.89,22.39174044]
[1731513756226,31.4598,217.0,216.81,22.39174044]
[1731513756227,58.45984044,217.0,216.91,22.39174044]
[1731513756429,22.39174044,216.96,216.87,22.39174044]
[1731513757111,36.0681,217.0,216.91,22.39174044]
[1731513757319,36.0681,217.0,216.81,22.39174044]
[1731513757320,22.39174044,216.98,216.87,22.39174044]
[1731513757497,22.39174044,216.96,216.87,22.39174044]
[1731513757896,22.39174044,216.96,216.85,22.39174044]
[1731513758130,22.39174044,216.96,216.87,22.39174044]
[1731513758300,4.6088,216.98,216.89,22.39174044]
[1731513758301,20.0,216.97,216.89,22.39174044]
[1731513758495,0.2,217.04,216.9,0.12549]
[1731513758708,30.21599563,217.14,216.79,23.776884]
[1731513758709,20.0,216.97,216.79,23.776884]
[1731513758910,20.0,216.97,216.87,22.39174044]